[Event "Titled Tuesday Blitz April 19 Early 2022"]
[White "Silva Lucena, Cristian"]
[Black "Kim, Sergey"]
[WhiteFideId "2232588"]
[BlackFideId "13700570"]
[WhiteElo "2223"]
[BlackElo "2583"]
[Result "1-0"]
[Round "05"]
[TimeControl "180+1"]
[Date "2022.04.19"]
[WhiteClock "0:00:07"]
[BlackClock "0:00:37"]

1. d4 {[%clk 0:03:00]}  Nf6 {[%clk 0:02:59]} 2. c4 {[%clk 0:02:57]}  g6 {[%clk 0:02:59]} 3. Nc3 {[%clk 0:02:56]}  Bg7 {[%clk 0:02:54]} 4. Nf3 {[%clk 0:02:45]}  d6 {[%clk 0:02:55]} 5. g3 {[%clk 0:02:46]}  O-O {[%clk 0:02:55]} 6. Bg2 {[%clk 0:02:45]}  Nbd7 {[%clk 0:02:55]} 7. O-O {[%clk 0:02:45]}  e5 {[%clk 0:02:55]} 8. dxe5 {[%clk 0:02:44]}  dxe5 {[%clk 0:02:55]} 9. Bg5 {[%clk 0:02:40]}  h6 {[%clk 0:02:55]} 10. Bc1 {[%clk 0:02:24]}  Re8 {[%clk 0:02:53]} 11. Nd5 {[%clk 0:02:18]}  c6 {[%clk 0:02:52]} 12. Nxf6+ {[%clk 0:02:15]}  Qxf6 {[%clk 0:02:50]} 13. Nd2 {[%clk 0:02:13]}  Qe7 {[%clk 0:02:49]} 14. Ne4 {[%clk 0:02:12]}  Rd8 {[%clk 0:02:48]} 15. Qd6 {[%clk 0:02:05]}  Qxd6 {[%clk 0:02:40]} 16. Nxd6 {[%clk 0:02:06]}  Nc5 {[%clk 0:02:40]} 17. Nxc8 {[%clk 0:01:56]}  Raxc8 {[%clk 0:02:40]} 18. Be3 {[%clk 0:01:56]}  Na4 {[%clk 0:02:37]} 19. Rab1 {[%clk 0:01:50]}  Nb6 {[%clk 0:02:33]} 20. b3 {[%clk 0:01:50]}  f5 {[%clk 0:02:32]} 21. a4 {[%clk 0:01:48]}  e4 {[%clk 0:02:26]} 22. Rfd1 {[%clk 0:01:33]}  Kf7 {[%clk 0:02:13]} 23. g4 {[%clk 0:01:31]}  Ke6 {[%clk 0:02:11]} 24. gxf5+ {[%clk 0:01:29]}  gxf5 {[%clk 0:02:11]} 25. f3 {[%clk 0:00:56]}  exf3 {[%clk 0:02:00]} 26. Bxf3 {[%clk 0:00:56]}  Be5 {[%clk 0:01:57]} 27. Kh1 {[%clk 0:00:35]}  h5 {[%clk 0:01:55]} 28. Rg1 {[%clk 0:00:30]}  Rg8 {[%clk 0:01:54]} 29. Rbd1 {[%clk 0:00:29]}  Nd7 {[%clk 0:01:49]} 30. a5 {[%clk 0:00:23]}  a6 {[%clk 0:01:48]} 31. b4 {[%clk 0:00:17]}  Nf6 {[%clk 0:01:45]} 32. b5 {[%clk 0:00:14]}  Ng4 {[%clk 0:01:44]} 33. Bxg4 {[%clk 0:00:10]}  hxg4 {[%clk 0:01:44]} 34. bxc6 {[%clk 0:00:06]}  Rxc6 {[%clk 0:01:40]} 35. c5 {[%clk 0:00:06]}  Rh8 {[%clk 0:01:39]} 36. Rg2 {[%clk 0:00:07]}  Rc7 {[%clk 0:01:34]} 37. Rb1 {[%clk 0:00:05]}  Rch7 {[%clk 0:01:33]} 38. Rb6+ {[%clk 0:00:05]}  Kd5 {[%clk 0:01:32]} 39. Kg1 {[%clk 0:00:04]}  Bxh2+ {[%clk 0:01:31]} 40. Kf1 {[%clk 0:00:05]}  Be5 {[%clk 0:01:28]} 41. Ke1 {[%clk 0:00:04]}  f4 {[%clk 0:01:29]} 42. Bg1 {[%clk 0:00:02]}  g3 {[%clk 0:01:28]} 43. Kd2 {[%clk 0:00:02]}  Rd7 {[%clk 0:01:23]} 44. c6 {[%clk 0:00:01]}  bxc6 {[%clk 0:01:21]} 45. Rxa6 {[%clk 0:00:01]}  Ke4+ {[%clk 0:01:20]} 46. Kc2 {[%clk 0:00:02]}  Rb8 {[%clk 0:01:19]} 47. Rxc6 {[%clk 0:00:02]}  Rb2+ {[%clk 0:01:18]} 48. Kc1 {[%clk 0:00:02]}  Ra2 {[%clk 0:01:15]} 49. Rc4+ {[%clk 0:00:03]}  Kf5 {[%clk 0:01:14]} 50. e4+ {[%clk 0:00:02]}  Kg4 {[%clk 0:01:12]} 51. Rxa2 {[%clk 0:00:02]}  f3 {[%clk 0:01:12]} 52. a6 {[%clk 0:00:03]}  f2 {[%clk 0:01:11]} 53. Bxf2 {[%clk 0:00:02]}  gxf2 {[%clk 0:01:11]} 54. Rxf2 {[%clk 0:00:03]}  Bf4+ {[%clk 0:01:12]} 55. Kb1 {[%clk 0:00:03]}  Be3 {[%clk 0:01:11]} 56. Ra2 {[%clk 0:00:03]}  Kf4 {[%clk 0:01:10]} 57. a7 {[%clk 0:00:03]}  Bxa7 {[%clk 0:01:09]} 58. Rca4 {[%clk 0:00:02]}  Be3 {[%clk 0:01:08]} 59. Rc2 {[%clk 0:00:02]}  Rb7+ {[%clk 0:01:06]} 60. Ka2 {[%clk 0:00:02]}  Re7 {[%clk 0:01:06]} 61. Rcc4 {[%clk 0:00:02]}  Kf3 {[%clk 0:01:05]} 62. Kb3 {[%clk 0:00:01]}  Bf4 {[%clk 0:01:04]} 63. Rc3+ {[%clk 0:00:01]}  Kg4 {[%clk 0:01:03]} 64. Kc4 {[%clk 0:00:01]}  Be5 {[%clk 0:01:02]} 65. Rd3 {[%clk 0:00:01]}  Kf4 {[%clk 0:01:00]} 66. Rd5 {[%clk 0:00:01]}  Rc7+ {[%clk 0:00:59]} 67. Rc5 {[%clk 0:00:02]}  Rd7 {[%clk 0:00:59]} 68. Kb5 {[%clk 0:00:02]}  Rd3 {[%clk 0:00:58]} 69. Rc6 {[%clk 0:00:02]}  Rb3+ {[%clk 0:00:57]} 70. Ka6 {[%clk 0:00:03]}  Rd3 {[%clk 0:00:57]} 71. Rcc4 {[%clk 0:00:03]}  Rd2 {[%clk 0:00:56]} 72. Kb7 {[%clk 0:00:04]}  Rd3 {[%clk 0:00:56]} 73. Kc6 {[%clk 0:00:04]}  Rd2 {[%clk 0:00:56]} 74. Kb5 {[%clk 0:00:05]}  Rd3 {[%clk 0:00:56]} 75. Rab4 {[%clk 0:00:05]}  Rd2 {[%clk 0:00:56]} 76. Rb3 {[%clk 0:00:06]}  Rd7 {[%clk 0:00:54]} 77. Kc6 {[%clk 0:00:05]}  Rd6+ {[%clk 0:00:53]} 78. Kc5 {[%clk 0:00:05]}  Rd2 {[%clk 0:00:53]} 79. Rb1 {[%clk 0:00:05]}  Rf2 {[%clk 0:00:53]} 80. Rh1 {[%clk 0:00:04]}  Rf3 {[%clk 0:00:44]} 81. Rh7 {[%clk 0:00:05]}  Ke3 {[%clk 0:00:41]} 82. Kd5 {[%clk 0:00:05]}  Bf4 {[%clk 0:00:37]} 83. Rc3+ {[%clk 0:00:05]}  Kf2 {[%clk 0:00:36]} 84. Rxf3+ {[%clk 0:00:05]}  Kxf3 {[%clk 0:00:37]} 85. Rf7 {[%clk 0:00:06]}  Kg4 {[%clk 0:00:37]} 86. Rxf4+ {[%clk 0:00:07]}  Kxf4 {[%clk 0:00:37]} 87. e5 {[%clk 0:00:07]} 1-0


[Site "https://www.chess.com"]

[Event "Titled Tuesday Blitz April 19 Early 2022"]
[White "SsanderSseverino"]
[Black "Kovalenko, Igor"]
[BlackFideId "14117908"]
[WhiteElo "2521"]
[BlackElo "2560"]
[Result "0-1"]
[Round "05"]
[TimeControl "180+1"]
[Date "2022.04.19"]
[WhiteClock "0:00:17"]
[BlackClock "0:01:01"]

1. d4 {[%clk 0:03:00]}  Nf6 {[%clk 0:02:57]} 2. Bg5 {[%clk 0:02:58]}  Ne4 {[%clk 0:02:57]} 3. Bf4 {[%clk 0:02:58]}  d5 {[%clk 0:02:58]} 4. Nd2 {[%clk 0:02:57]}  Bf5 {[%clk 0:02:57]} 5. Nxe4 {[%clk 0:02:53]}  Bxe4 {[%clk 0:02:58]} 6. f3 {[%clk 0:02:51]}  Bg6 {[%clk 0:02:58]} 7. Qd2 {[%clk 0:02:48]}  e6 {[%clk 0:02:58]} 8. O-O-O {[%clk 0:02:47]}  Bd6 {[%clk 0:02:57]} 9. Bxd6 {[%clk 0:02:40]}  Qxd6 {[%clk 0:02:57]} 10. e3 {[%clk 0:02:39]}  c5 {[%clk 0:02:55]} 11. dxc5 {[%clk 0:02:36]}  Qxc5 {[%clk 0:02:56]} 12. Bd3 {[%clk 0:02:35]}  Nc6 {[%clk 0:02:55]} 13. Ne2 {[%clk 0:02:33]}  Rc8 {[%clk 0:02:44]} 14. Kb1 {[%clk 0:02:23]}  a5 {[%clk 0:02:36]} 15. Nd4 {[%clk 0:02:13]}  Bxd3 {[%clk 0:02:36]} 16. Qxd3 {[%clk 0:02:06]}  Nxd4 {[%clk 0:02:35]} 17. exd4 {[%clk 0:02:04]}  Qc4 {[%clk 0:02:36]} 18. Qxc4 {[%clk 0:01:57]}  Rxc4 {[%clk 0:02:37]} 19. b3 {[%clk 0:01:56]}  Rc6 {[%clk 0:02:35]} 20. a4 {[%clk 0:01:55]}  Ke7 {[%clk 0:02:35]} 21. Rd3 {[%clk 0:01:50]}  Rhc8 {[%clk 0:02:35]} 22. Rc1 {[%clk 0:01:49]}  Kd6 {[%clk 0:02:35]} 23. Kb2 {[%clk 0:01:48]}  g5 {[%clk 0:02:34]} 24. c3 {[%clk 0:01:47]}  h5 {[%clk 0:02:34]} 25. Re1 {[%clk 0:01:41]}  Rg8 {[%clk 0:02:33]} 26. h3 {[%clk 0:01:35]}  h4 {[%clk 0:02:30]} 27. Re5 {[%clk 0:01:31]}  f6 {[%clk 0:02:28]} 28. Re1 {[%clk 0:01:30]}  Rgc8 {[%clk 0:02:24]} 29. Red1 {[%clk 0:01:28]}  Ke7 {[%clk 0:02:24]} 30. Re3 {[%clk 0:01:26]}  Kf7 {[%clk 0:02:25]} 31. Rde1 {[%clk 0:01:25]}  Rd8 {[%clk 0:02:25]} 32. R1e2 {[%clk 0:01:24]}  Rdd6 {[%clk 0:02:25]} 33. Rc2 {[%clk 0:01:22]}  Kg6 {[%clk 0:02:25]} 34. Rd3 {[%clk 0:01:20]}  Kf5 {[%clk 0:02:25]} 35. b4 {[%clk 0:01:17]}  Rc4 {[%clk 0:02:24]} 36. Kb3 {[%clk 0:01:16]}  Rb6 {[%clk 0:02:21]} 37. b5 {[%clk 0:01:14]}  Rd6 {[%clk 0:02:21]} 38. Re2 {[%clk 0:01:14]}  Rd7 {[%clk 0:02:14]} 39. Rde3 {[%clk 0:01:11]}  Re7 {[%clk 0:02:14]} 40. Re1 {[%clk 0:01:08]}  Rc8 {[%clk 0:02:10]} 41. R1e2 {[%clk 0:01:07]}  Rd8 {[%clk 0:02:10]} 42. Re1 {[%clk 0:01:07]}  Rd6 {[%clk 0:02:10]} 43. R1e2 {[%clk 0:01:07]}  Kf4 {[%clk 0:02:10]} 44. Kc2 {[%clk 0:01:05]}  e5 {[%clk 0:02:10]} 45. Kd3 {[%clk 0:01:03]}  Rde6 {[%clk 0:02:06]} 46. c4 {[%clk 0:01:02]}  dxc4+ {[%clk 0:01:41]} 47. Kxc4 {[%clk 0:01:01]}  b6 {[%clk 0:01:28]} 48. Re4+ {[%clk 0:00:51]}  Kf5 {[%clk 0:01:28]} 49. dxe5 {[%clk 0:00:50]}  fxe5 {[%clk 0:01:26]} 50. g4+ {[%clk 0:00:35]}  hxg3 {[%clk 0:01:25]} 51. Rg2 {[%clk 0:00:35]}  Rc7+ {[%clk 0:01:23]} 52. Kb3 {[%clk 0:00:34]}  Rd6 {[%clk 0:01:23]} 53. Rxg3 {[%clk 0:00:33]}  Rd3+ {[%clk 0:01:23]} 54. Kb2 {[%clk 0:00:33]}  Rd2+ {[%clk 0:01:06]} 55. Kb3 {[%clk 0:00:32]}  Rdc2 {[%clk 0:01:07]} 56. Re3 {[%clk 0:00:28]}  R2c4 {[%clk 0:01:06]} 57. Rg4 {[%clk 0:00:28]}  Rf4 {[%clk 0:01:04]} 58. Rd3 {[%clk 0:00:22]}  Rh7 {[%clk 0:01:03]} 59. Rg3 {[%clk 0:00:19]}  Rb4+ {[%clk 0:01:00]} 60. Ka3 {[%clk 0:00:18]}  Rhh4 {[%clk 0:01:01]} 61. Rd6 {[%clk 0:00:18]}  Rxa4+ {[%clk 0:01:01]} 62. Kb3 {[%clk 0:00:17]}  Rhb4+ {[%clk 0:01:01]} 63. Kc3 {[%clk 0:00:17]}  Rc4+ {[%clk 0:01:01]} 0-1


[Site "https://www.chess.com"]

[Event "Titled Tuesday Blitz April 19 Early 2022"]
[White "Stefanov, Plamen"]
[Black "Bilych, Olexiy"]
[WhiteFideId "2900980"]
[BlackFideId "14156504"]
[WhiteElo "2137"]
[BlackElo "2176"]
[Result "0-1"]
[Round "05"]
[TimeControl "180+1"]
[Date "2022.04.19"]
[WhiteClock "0:00:16"]
[BlackClock "0:00:33"]

1. e4 {[%clk 0:02:56]}  c5 {[%clk 0:02:59]} 2. Nf3 {[%clk 0:02:54]}  d6 {[%clk 0:03:00]} 3. d4 {[%clk 0:02:51]}  cxd4 {[%clk 0:03:01]} 4. Nxd4 {[%clk 0:02:51]}  Nf6 {[%clk 0:03:01]} 5. Nc3 {[%clk 0:02:51]}  a6 {[%clk 0:03:01]} 6. h3 {[%clk 0:02:51]}  e5 {[%clk 0:03:00]} 7. Nde2 {[%clk 0:02:43]}  h5 {[%clk 0:02:59]} 8. g3 {[%clk 0:02:43]}  b5 {[%clk 0:02:59]} 9. Bg2 {[%clk 0:02:39]}  Nbd7 {[%clk 0:02:45]} 10. Be3 {[%clk 0:02:32]}  Bb7 {[%clk 0:02:41]} 11. Nd5 {[%clk 0:02:31]}  Bxd5 {[%clk 0:02:35]} 12. exd5 {[%clk 0:02:31]}  g6 {[%clk 0:02:36]} 13. O-O {[%clk 0:02:31]}  Bg7 {[%clk 0:02:31]} 14. c3 {[%clk 0:02:30]}  O-O {[%clk 0:02:28]} 15. Qd2 {[%clk 0:02:31]}  Nb6 {[%clk 0:02:24]} 16. b3 {[%clk 0:02:27]}  Rc8 {[%clk 0:02:23]} 17. Rad1 {[%clk 0:02:26]}  Re8 {[%clk 0:02:15]} 18. Bg5 {[%clk 0:02:26]}  Qc7 {[%clk 0:02:11]} 19. Kh2 {[%clk 0:02:19]}  e4 {[%clk 0:02:03]} 20. f3 {[%clk 0:01:55]}  exf3 {[%clk 0:01:42]} 21. Bxf3 {[%clk 0:01:55]}  Nfxd5 {[%clk 0:01:43]} 22. Nf4 {[%clk 0:01:08]}  Ne3 {[%clk 0:01:32]} 23. Nd5 {[%clk 0:00:59]}  Nbxd5 {[%clk 0:01:26]} 24. Bxd5 {[%clk 0:00:59]}  Nxd5 {[%clk 0:01:00]} 25. Qxd5 {[%clk 0:00:56]}  Re5 {[%clk 0:01:00]} 26. Qd2 {[%clk 0:00:51]}  Qxc3 {[%clk 0:01:00]} 27. Bf4 {[%clk 0:00:46]}  Qxd2+ {[%clk 0:00:46]} 28. Rxd2 {[%clk 0:00:46]}  Re4 {[%clk 0:00:46]} 29. Bxd6 {[%clk 0:00:37]}  Rd8 {[%clk 0:00:46]} 30. Rfd1 {[%clk 0:00:36]}  Bh6 {[%clk 0:00:45]} 31. Bf4 {[%clk 0:00:34]}  Rxd2+ {[%clk 0:00:44]} 32. Rxd2 {[%clk 0:00:32]}  Bxf4 {[%clk 0:00:41]} 33. gxf4 {[%clk 0:00:32]}  Rxf4 {[%clk 0:00:42]} 34. Kg3 {[%clk 0:00:32]}  Rf5 {[%clk 0:00:39]} 35. Rd6 {[%clk 0:00:31]}  a5 {[%clk 0:00:39]} 36. Ra6 {[%clk 0:00:30]}  b4 {[%clk 0:00:39]} 37. Ra8+ {[%clk 0:00:23]}  Kg7 {[%clk 0:00:39]} 38. Ra7 {[%clk 0:00:23]}  Rd5 {[%clk 0:00:37]} 39. Ra6 {[%clk 0:00:23]}  f6 {[%clk 0:00:36]} 40. Ra7+ {[%clk 0:00:22]}  Kh6 {[%clk 0:00:36]} 41. Ra6 {[%clk 0:00:22]}  Kg5 {[%clk 0:00:35]} 42. Ra7 {[%clk 0:00:21]}  h4+ {[%clk 0:00:35]} 43. Kf3 {[%clk 0:00:20]}  f5 {[%clk 0:00:35]} 44. Ra6 {[%clk 0:00:19]}  Rd3+ {[%clk 0:00:34]} 45. Ke2 {[%clk 0:00:19]}  Rxh3 {[%clk 0:00:34]} 46. Rxa5 {[%clk 0:00:19]}  Rg3 {[%clk 0:00:34]} 47. Ra4 {[%clk 0:00:18]}  h3 {[%clk 0:00:34]} 48. Kf2 {[%clk 0:00:19]}  h2 {[%clk 0:00:34]} 49. Kxg3 {[%clk 0:00:18]}  h1=Q {[%clk 0:00:35]} 50. Kf2 {[%clk 0:00:17]}  Qe4 {[%clk 0:00:33]} 51. a3 {[%clk 0:00:17]}  Qc2+ {[%clk 0:00:33]} 52. Kf1 {[%clk 0:00:16]}  bxa3 {[%clk 0:00:33]} 53. Rxa3 {[%clk 0:00:16]}  Qc1+ {[%clk 0:00:33]} 0-1


[Site "https://www.chess.com"]

[Event "Titled Tuesday Blitz April 19 Early 2022"]
[White "Svane, Frederik"]
[Black "Dev, Shah"]
[WhiteFideId "12923044"]
[BlackFideId "35019058"]
[WhiteElo "2459"]
[BlackElo "2075"]
[Result "1-0"]
[Round "05"]
[TimeControl "180+1"]
[Date "2022.04.19"]
[WhiteClock "0:00:05"]
[BlackClock "0:01:46"]

1. e4 {[%clk 0:03:00]}  e5 {[%clk 0:02:58]} 2. Nf3 {[%clk 0:03:01]}  Nc6 {[%clk 0:02:56]} 3. Bb5 {[%clk 0:03:01]}  a6 {[%clk 0:02:56]} 4. Ba4 {[%clk 0:03:02]}  Nf6 {[%clk 0:02:56]} 5. Nc3 {[%clk 0:03:03]}  b5 {[%clk 0:02:56]} 6. Bb3 {[%clk 0:03:03]}  Bc5 {[%clk 0:02:54]} 7. O-O {[%clk 0:03:04]}  d6 {[%clk 0:02:54]} 8. Nd5 {[%clk 0:03:02]}  Bg4 {[%clk 0:02:52]} 9. c3 {[%clk 0:02:32]}  O-O {[%clk 0:02:45]} 10. d4 {[%clk 0:02:24]}  exd4 {[%clk 0:02:32]} 11. Bg5 {[%clk 0:02:23]}  dxc3 {[%clk 0:02:30]} 12. bxc3 {[%clk 0:02:05]}  Ne5 {[%clk 0:02:29]} 13. Kh1 {[%clk 0:01:53]}  c6 {[%clk 0:02:23]} 14. Nxf6+ {[%clk 0:01:52]}  gxf6 {[%clk 0:02:24]} 15. Bh6 {[%clk 0:01:51]}  Re8 {[%clk 0:02:22]} 16. Rg1 {[%clk 0:00:28]}  Bxf2 {[%clk 0:02:11]} 17. Rf1 {[%clk 0:00:28]}  Bh4 {[%clk 0:02:11]} 18. Qd2 {[%clk 0:00:21]}  Bxf3 {[%clk 0:02:02]} 19. gxf3 {[%clk 0:00:19]}  Bg5 {[%clk 0:02:03]} 20. Bxg5 {[%clk 0:00:15]}  fxg5 {[%clk 0:02:03]} 21. f4 {[%clk 0:00:16]}  gxf4 {[%clk 0:02:02]} 22. Qxf4 {[%clk 0:00:17]}  Qe7 {[%clk 0:01:57]} 23. Rf2 {[%clk 0:00:05]}  Ra7 {[%clk 0:01:56]} 24. Qh6 {[%clk 0:00:02]}  Rf8 {[%clk 0:01:48]} 25. Rg1+ {[%clk 0:00:03]}  Ng6 {[%clk 0:01:47]} 26. Rxg6+ {[%clk 0:00:03]}  hxg6 {[%clk 0:01:47]} 27. Qxg6+ {[%clk 0:00:04]}  Kh8 {[%clk 0:01:46]} 28. Qh6+ {[%clk 0:00:04]}  Kg8 {[%clk 0:01:46]} 29. Rg2+ {[%clk 0:00:05]}  Qg5 {[%clk 0:01:46]} 30. Rxg5# {[%clk 0:00:05]} 1-0


[Site "https://www.chess.com"]

[Event "Titled Tuesday Blitz April 19 Early 2022"]
[White "Sztokbant, Bernardo Vainzoff"]
[Black "Fernandez Siles, Luis"]
[WhiteFideId "2115956"]
[BlackFideId "2209420"]
[WhiteElo "2225"]
[BlackElo "2212"]
[Result "1-0"]
[Round "05"]
[TimeControl "180+1"]
[Date "2022.04.19"]
[WhiteClock "0:00:51"]
[BlackClock "0:00:01"]

1. e4 {[%clk 0:02:59]}  e5 {[%clk 0:02:58]} 2. Nf3 {[%clk 0:02:58]}  Nc6 {[%clk 0:02:57]} 3. Bb5 {[%clk 0:02:56]}  a6 {[%clk 0:02:54]} 4. Bxc6 {[%clk 0:02:57]}  dxc6 {[%clk 0:02:53]} 5. d4 {[%clk 0:02:53]}  exd4 {[%clk 0:02:51]} 6. Qxd4 {[%clk 0:02:54]}  Qxd4 {[%clk 0:02:50]} 7. Nxd4 {[%clk 0:02:55]}  g6 {[%clk 0:02:41]} 8. Nc3 {[%clk 0:02:52]}  Bg7 {[%clk 0:02:38]} 9. Be3 {[%clk 0:02:52]}  c5 {[%clk 0:02:33]} 10. Nde2 {[%clk 0:02:51]}  b6 {[%clk 0:02:31]} 11. O-O-O {[%clk 0:02:50]}  Ne7 {[%clk 0:02:25]} 12. Bf4 {[%clk 0:02:47]}  Ra7 {[%clk 0:02:15]} 13. Rd2 {[%clk 0:02:34]}  Be6 {[%clk 0:01:58]} 14. Rhd1 {[%clk 0:02:34]}  Nc6 {[%clk 0:01:53]} 15. Be3 {[%clk 0:02:23]}  O-O {[%clk 0:01:40]} 16. Nd5 {[%clk 0:02:23]}  Bxd5 {[%clk 0:01:39]} 17. Rxd5 {[%clk 0:02:23]}  Nb4 {[%clk 0:01:35]} 18. Rd7 {[%clk 0:02:23]}  Nxa2+ {[%clk 0:01:33]} 19. Kb1 {[%clk 0:02:23]}  Nb4 {[%clk 0:01:33]} 20. Bf4 {[%clk 0:02:21]}  Nc6 {[%clk 0:01:20]} 21. Bxc7 {[%clk 0:02:12]}  Nd4 {[%clk 0:01:16]} 22. Nc3 {[%clk 0:01:58]}  Be5 {[%clk 0:00:50]} 23. Nd5 {[%clk 0:01:51]}  Bxc7 {[%clk 0:00:49]} 24. Rxc7 {[%clk 0:01:48]}  Rxc7 {[%clk 0:00:47]} 25. Nxc7 {[%clk 0:01:49]}  a5 {[%clk 0:00:40]} 26. c3 {[%clk 0:01:47]}  Ne6 {[%clk 0:00:39]} 27. Nxe6 {[%clk 0:01:40]}  fxe6 {[%clk 0:00:39]} 28. f3 {[%clk 0:01:41]}  g5 {[%clk 0:00:23]} 29. h3 {[%clk 0:01:36]}  h5 {[%clk 0:00:23]} 30. Rd6 {[%clk 0:01:36]}  Kf7 {[%clk 0:00:12]} 31. Rxb6 {[%clk 0:01:32]}  g4 {[%clk 0:00:12]} 32. hxg4 {[%clk 0:01:32]}  hxg4 {[%clk 0:00:12]} 33. fxg4 {[%clk 0:01:31]}  Rg8 {[%clk 0:00:13]} 34. Rb5 {[%clk 0:01:30]}  Rxg4 {[%clk 0:00:12]} 35. Rxc5 {[%clk 0:01:28]}  Rxe4 {[%clk 0:00:06]} 36. Rxa5 {[%clk 0:01:28]}  Rg4 {[%clk 0:00:06]} 37. b4 {[%clk 0:01:23]}  Rxg2 {[%clk 0:00:05]} 38. b5 {[%clk 0:01:18]}  Ke7 {[%clk 0:00:04]} 39. Ra6 {[%clk 0:01:16]}  Kd7 {[%clk 0:00:03]} 40. c4 {[%clk 0:01:15]}  e5 {[%clk 0:00:02]} 41. Ra7+ {[%clk 0:01:08]}  Kd6 {[%clk 0:00:02]} 42. b6 {[%clk 0:00:51]}  Kc6 {[%clk 0:00:01]} 43. c5 {[%clk 0:00:51]} 1-0


[Site "https://www.chess.com"]

[Event "Titled Tuesday Blitz April 19 Early 2022"]
[White "Tan, Jun Ying"]
[Black "Pourkashiyan, Atousa"]
[WhiteFideId "5710413"]
[BlackFideId "12502014"]
[WhiteElo "1827"]
[BlackElo "2247"]
[Result "0-1"]
[Round "05"]
[TimeControl "180+1"]
[Date "2022.04.19"]
[WhiteClock "0:00:07"]
[BlackClock "0:00:18"]

1. Nf3 {[%clk 0:03:00]}  d5 {[%clk 0:03:00]} 2. c4 {[%clk 0:03:00]}  e6 {[%clk 0:03:00]} 3. e3 {[%clk 0:03:00]}  Nf6 {[%clk 0:03:00]} 4. b3 {[%clk 0:03:01]}  Be7 {[%clk 0:03:00]} 5. Bb2 {[%clk 0:03:01]}  O-O {[%clk 0:03:01]} 6. Be2 {[%clk 0:03:02]}  c5 {[%clk 0:03:01]} 7. O-O {[%clk 0:03:02]}  Nc6 {[%clk 0:03:01]} 8. d4 {[%clk 0:03:01]}  cxd4 {[%clk 0:02:59]} 9. exd4 {[%clk 0:03:01]}  dxc4 {[%clk 0:02:59]} 10. bxc4 {[%clk 0:03:02]}  b6 {[%clk 0:03:00]} 11. Nc3 {[%clk 0:03:01]}  Bb7 {[%clk 0:03:00]} 12. Rc1 {[%clk 0:02:41]}  Rc8 {[%clk 0:03:00]} 13. Qb3 {[%clk 0:02:31]}  Na5 {[%clk 0:03:00]} 14. Qa4 {[%clk 0:02:26]}  Bc6 {[%clk 0:02:59]} 15. Qc2 {[%clk 0:02:06]}  Bxf3 {[%clk 0:02:54]} 16. Bxf3 {[%clk 0:02:03]}  Nxc4 {[%clk 0:02:55]} 17. Ba1 {[%clk 0:02:03]}  Ba3 {[%clk 0:02:53]} 18. Rcd1 {[%clk 0:02:03]}  Bb4 {[%clk 0:02:52]} 19. Qd3 {[%clk 0:02:02]}  Nd6 {[%clk 0:02:40]} 20. d5 {[%clk 0:01:59]}  Bxc3 {[%clk 0:02:32]} 21. Bxc3 {[%clk 0:02:00]}  Nxd5 {[%clk 0:02:20]} 22. Bxd5 {[%clk 0:01:52]}  exd5 {[%clk 0:02:21]} 23. Qd4 {[%clk 0:01:46]}  Nf5 {[%clk 0:02:19]} 24. Qe5 {[%clk 0:01:46]}  Re8 {[%clk 0:01:46]} 25. Qxf5 {[%clk 0:01:46]}  Rxc3 {[%clk 0:01:46]} 26. Rxd5 {[%clk 0:01:47]}  Qf6 {[%clk 0:01:39]} 27. Qd7 {[%clk 0:01:36]}  Qe6 {[%clk 0:01:15]} 28. Qa4 {[%clk 0:01:13]}  Rec8 {[%clk 0:01:06]} 29. Qd4 {[%clk 0:01:00]}  h6 {[%clk 0:00:56]} 30. h3 {[%clk 0:00:52]}  Rc2 {[%clk 0:00:46]} 31. a3 {[%clk 0:00:47]}  Re8 {[%clk 0:00:28]} 32. Rd7 {[%clk 0:00:42]}  a5 {[%clk 0:00:27]} 33. Rd6 {[%clk 0:00:41]}  Qe2 {[%clk 0:00:24]} 34. Rd1 {[%clk 0:00:30]}  Re4 {[%clk 0:00:21]} 35. Qxb6 {[%clk 0:00:18]}  Rf4 {[%clk 0:00:22]} 36. Rd8+ {[%clk 0:00:14]}  Kh7 {[%clk 0:00:22]} 37. Rf1 {[%clk 0:00:08]}  Re4 {[%clk 0:00:17]} 38. Qb1 {[%clk 0:00:06]}  g6 {[%clk 0:00:15]} 39. Rd7 {[%clk 0:00:05]}  Rb2 {[%clk 0:00:14]} 40. Qd1 {[%clk 0:00:03]}  Qxd1 {[%clk 0:00:14]} 41. Rfxd1 {[%clk 0:00:02]}  Kg7 {[%clk 0:00:13]} 42. Rf1 {[%clk 0:00:02]}  Ra2 {[%clk 0:00:13]} 43. a4 {[%clk 0:00:02]}  Raxa4 {[%clk 0:00:13]} 44. Rc1 {[%clk 0:00:02]}  Rad4 {[%clk 0:00:12]} 45. Rcc7 {[%clk 0:00:03]}  Rxd7 {[%clk 0:00:12]} 46. Rxd7 {[%clk 0:00:04]}  a4 {[%clk 0:00:13]} 47. Ra7 {[%clk 0:00:05]}  Re1+ {[%clk 0:00:13]} 48. Kh2 {[%clk 0:00:05]}  Ra1 {[%clk 0:00:14]} 49. Kg3 {[%clk 0:00:05]}  a3 {[%clk 0:00:15]} 50. f3 {[%clk 0:00:06]}  Kf6 {[%clk 0:00:15]} 51. Kf2 {[%clk 0:00:06]}  h5 {[%clk 0:00:16]} 52. Ke2 {[%clk 0:00:07]}  Ke5 {[%clk 0:00:16]} 53. g3 {[%clk 0:00:07]}  a2 {[%clk 0:00:16]} 54. Ke3 {[%clk 0:00:06]}  Re1+ {[%clk 0:00:16]} 55. Kf2 {[%clk 0:00:07]}  a1=Q {[%clk 0:00:17]} 56. Rxa1 {[%clk 0:00:06]}  Rxa1 {[%clk 0:00:18]} 57. f4+ {[%clk 0:00:07]}  Kf5 {[%clk 0:00:18]} 0-1


[Site "https://www.chess.com"]